Workbook

Sheet Mortgage Loan Amortization Schd
B1: MORTGAGE LOAN AMORTIZATION SCHEDULE
B3: LENDER NAME | G3: DATA | I3: VALUE
B4: LENDER ADDRESS | G4: ***Complete WHITE Fields Only***
G5: PURCHASE PRICE | I5: 300000
G6: PERCENT OF DOWN PAYMENT | I6: 0
B7: LENDER PHONE | G7: TOTAL DOWN PAYMENT | I7: =I6*I5 -> 0
B8: LENDER WEB | D8: www. | G8: LOAN AMOUNT | I8: =I5-I7 -> 300000
B9: CONTACT EMAIL | G9: ANNUAL INTEREST RATE | I9: 0.055
B10: DATE OF LOAN | G10: LENGTH OF LOAN IN YEARS | I10: 30
B11: NAME ON LOAN | G11: LENGTH OF LOAN IN MONTHS | I11: =I10*12 -> 360
G12: FIRST PAYMENT DATE | I12: 2018-05-01
G13: COMPOUND PERIOD | I13: Semi-Annually
G14: PAYMENT FREQUENCY | I14: Monthly
G15: CALCULATED OUTPUT
G16: MONTHLY INTEREST RATE | I16: =((1+I9/C24)^(C24/12))-1 -> 0.004531681718
G17: MONTHLY PAYMENT | I17: =ROUND(-PMT(I16,C22,I8),2) -> 1691.72
G18: NUMBER OF PAYMENTS | I18: =C22 -> 360
G19: INTEREST TOTAL | I19: =SUM(G29:G389) -> 309018.04
A20: Periods per year | C20: =INDEX({12;24;26;52},MATCH(I14,E20:E23,0)) -> 12 | E20: Monthly | F20: Monthly
A21: months per period | C21: =12/C20 -> 1 | E21: Semi-Monthly | F21: Semi-Annually
A22: number of periods | C22: =I10*C20 -> 360 | E22: Bi-Weekly
A23: TOTAL PAYMENTS | C23: =SUM(G29:G389)+SUM(H29:H389) -> 609018.04 | E23: Weekly
B24: cp | C24: =INDEX({12;2},MATCH(I13,F20:F21,0)) -> 2
B26: MORTGAGE LOAN AMORTIZATION SCHEDULE
B27: PMT # | C27: DATE OF PAYMENT | D27: BEGINNING BALANCE | E27: SCHEDULED PAYMENT | F27: ADDITIONAL PAYMENT | G27: INTEREST | H27: PRINCIPAL | I27: BALANCE
I28: =I8 -> 300000
B29: =IF(I28="","",IF(OR(B28>=$C$22,ROUND(I28,2)<=0),"",B28+1)) -> 1 | C29: =IF(B29="","",IF(MONTH(DATE(YEAR($I$12),MONTH($I$12)+(B29-1),DAY($I$12)))>(MONTH($I$12)+MOD((B29-1),12)),DATE(YEAR($I$12),MONTH($I$12)+(B29-1)+1,0),DATE(YEAR($I$12),MONTH($I$12)+(B29-1),DAY($I$12)))) -> 2018-05-01 | D29: =IF(B29="","",I28) -> 300000 | E29: =IF(B29="","",IF(OR(B29=$C$22,$I$17>ROUND((1+$I$16)*I28,2)),ROUND((1+$I$16)*I28,2),$I$17)) -> 1691.72 | G29: =IF(B29="","",ROUND($I$16*I28,2)) -> 1359.5 | H29: =IF(B29="","",E29-G29+F29) -> 332.22 | I29: =IF(B29="","",I28-H29) -> 299667.78
B30: 2 | C30: 2018-06-01 | D30: =IF(B30="","",I29) -> 299667.78 | E30: 1691.72 | G30: 1358 | H30: 333.72 | I30: =IF(B30="","",I29-H30) -> 299334.06
B31: 3 | C31: 2018-07-01 | D31: 299334.06 | E31: 1691.72 | G31: 1356.49 | H31: 335.23 | I31: 298998.83
B32: 4 | C32: 2018-08-01 | D32: 298998.83 | E32: 1691.72 | G32: 1354.97 | H32: 336.75 | I32: 298662.08
B33: 5 | C33: 2018-09-01 | D33: 298662.08 | E33: 1691.72 | G33: 1353.44 | H33: 338.28 | I33: 298323.8
B34: 6 | C34: 2018-10-01 | D34: 298323.8 | E34: 1691.72 | G34: 1351.91 | H34: 339.81 | I34: 297983.99
B35: 7 | C35: 2018-11-01 | D35: 297983.99 | E35: 1691.72 | G35: 1350.37 | H35: 341.35 | I35: 297642.64
B36: 8 | C36: 2018-12-01 | D36: 297642.64 | E36: 1691.72 | G36: 1348.82 | H36: 342.9 | I36: 297299.74
B37: 9 | C37: 2019-01-01 | D37: 297299.74 | E37: 1691.72 | G37: 1347.27 | H37: 344.45 | I37: 296955.29
B38: 10 | C38: 2019-02-01 | D38: 296955.29 | E38: 1691.72 | G38: 1345.71 | H38: 346.01 | I38: 296609.28
B39: 11 | C39: 2019-03-01 | D39: 296609.28 | E39: 1691.72 | G39: 1344.14 | H39: 347.58 | I39: 296261.7
B40: 12 | C40: 2019-04-01 | D40: 296261.7 | E40: 1691.72 | G40: 1342.56 | H40: 349.16 | I40: 295912.54
B41: 13 | C41: 2019-05-01 | D41: 295912.54 | E41: 1691.72 | G41: 1340.98 | H41: 350.74 | I41: 295561.8
B42: 14 | C42: 2019-06-01 | D42: 295561.8 | E42: 1691.72 | G42: 1339.39 | H42: 352.33 | I42: 295209.47
B43: 15 | C43: 2019-07-01 | D43: 295209.47 | E43: 1691.72 | G43: 1337.8 | H43: 353.92 | I43: 294855.55
B44: 16 | C44: 2019-08-01 | D44: 294855.55 | E44: 1691.72 | G44: 1336.19 | H44: 355.53 | I44: 294500.02
B45: 17 | C45: 2019-09-01 | D45: 294500.02 | E45: 1691.72 | G45: 1334.58 | H45: 357.14 | I45: 294142.88
B46: 18 | C46: 2019-10-01 | D46: 294142.88 | E46: 1691.72 | G46: 1332.96 | H46: 358.76 | I46: 293784.12
B47: 19 | C47: 2019-11-01 | D47: 293784.12 | E47: 1691.72 | G47: 1331.34 | H47: 360.38 | I47: 293423.74
B48: 20 | C48: 2019-12-01 | D48: 293423.74 | E48: 1691.72 | G48: 1329.7 | H48: 362.02 | I48: 293061.72
B49: 21 | C49: 2020-01-01 | D49: 293061.72 | E49: 1691.72 | G49: 1328.06 | H49: 363.66 | I49: 292698.06
B50: 22 | C50: 2020-02-01 | D50: 292698.06 | E50: 1691.72 | G50: 1326.41 | H50: 365.31 | I50: 292332.75
B51: 23 | C51: 2020-03-01 | D51: 292332.75 | E51: 1691.72 | G51: 1324.76 | H51: 366.96 | I51: 291965.79
B52: 24 | C52: 2020-04-01 | D52: 291965.79 | E52: 1691.72 | G52: 1323.1 | H52: 368.62 | I52: 291597.17
B53: 25 | C53: 2020-05-01 | D53: 291597.17 | E53: 1691.72 | G53: 1321.43 | H53: 370.29 | I53: 291226.88
B54: 26 | C54: 2020-06-01 | D54: 291226.88 | E54: 1691.72 | G54: 1319.75 | H54: 371.97 | I54: 290854.91
B55: 27 | C55: 2020-07-01 | D55: 290854.91 | E55: 1691.72 | G55: 1318.06 | H55: 373.66 | I55: 290481.25
B56: 28 | C56: 2020-08-01 | D56: 290481.25 | E56: 1691.72 | G56: 1316.37 | H56: 375.35 | I56: 290105.9
B57: 29 | C57: 2020-09-01 | D57: 290105.9 | E57: 1691.72 | G57: 1314.67 | H57: 377.05 | I57: 289728.85
B58: 30 | C58: 2020-10-01 | D58: 289728.85 | E58: 1691.72 | G58: 1312.96 | H58: 378.76 | I58: 289350.09
B59: 31 | C59: 2020-11-01 | D59: 289350.09 | E59: 1691.72 | G59: 1311.24 | H59: 380.48 | I59: 288969.61
B60: 32 | C60: 2020-12-01 | D60: 288969.61 | E60: 1691.72 | G60: 1309.52 | H60: 382.2 | I60: 288587.41
B61: 33 | C61: 2021-01-01 | D61: 288587.41 | E61: 1691.72 | G61: 1307.79 | H61: 383.93 | I61: 288203.48
B62: 34 | C62: 2021-02-01 | D62: 288203.48 | E62: 1691.72 | G62: 1306.05 | H62: 385.67 | I62: 287817.81
B63: 35 | C63: 2021-03-01 | D63: 287817.81 | E63: 1691.72 | G63: 1304.3 | H63: 387.42 | I63: 287430.39
B64: 36 | C64: 2021-04-01 | D64: 287430.39 | E64: 1691.72 | G64: 1302.54 | H64: 389.18 | I64: 287041.21
B65: 37 | C65: 2021-05-01 | D65: 287041.21 | E65: 1691.72 | G65: 1300.78 | H65: 390.94 | I65: 286650.27
B66: 38 | C66: 2021-06-01 | D66: 286650.27 | E66: 1691.72 | G66: 1299.01 | H66: 392.71 | I66: 286257.56
B67: 39 | C67: 2021-07-01 | D67: 286257.56 | E67: 1691.72 | G67: 1297.23 | H67: 394.49 | I67: 285863.07
B68: 40 | C68: 2021-08-01 | D68: 285863.07 | E68: 1691.72 | G68: 1295.44 | H68: 396.28 | I68: 285466.79
B69: 41 | C69: 2021-09-01 | D69: 285466.79 | E69: 1691.72 | G69: 1293.64 | H69: 398.08 | I69: 285068.71
B70: 42 | C70: 2021-10-01 | D70: 285068.71 | E70: 1691.72 | G70: 1291.84 | H70: 399.88 | I70: 284668.83
B71: 43 | C71: 2021-11-01 | D71: 284668.83 | E71: 1691.72 | G71: 1290.03 | H71: 401.69 | I71: 284267.14
B72: 44 | C72: 2021-12-01 | D72: 284267.14 | E72: 1691.72 | G72: 1288.21 | H72: 403.51 | I72: 283863.63
B73: 45 | C73: 2022-01-01 | D73: 283863.63 | E73: 1691.72 | G73: 1286.38 | H73: 405.34 | I73: 283458.29
B74: 46 | C74: 2022-02-01 | D74: 283458.29 | E74: 1691.72 | G74: 1284.54 | H74: 407.18 | I74: 283051.11
B75: 47 | C75: 2022-03-01 | D75: 283051.11 | E75: 1691.72 | G75: 1282.7 | H75: 409.02 | I75: 282642.09
B76: 48 | C76: 2022-04-01 | D76: 282642.09 | E76: 1691.72 | G76: 1280.84 | H76: 410.88 | I76: 282231.21
B77: 49 | C77: 2022-05-01 | D77: 282231.21 | E77: 1691.72 | G77: 1278.98 | H77: 412.74 | I77: 281818.47
B78: 50 | C78: 2022-06-01 | D78: 281818.47 | E78: 1691.72 | G78: 1277.11 | H78: 414.61 | I78: 281403.86
B79: 51 | C79: 2022-07-01 | D79: 281403.86 | E79: 1691.72 | G79: 1275.23 | H79: 416.49 | I79: 280987.37
B80: 52 | C80: 2022-08-01 | D80: 280987.37 | E80: 1691.72 | G80: 1273.35 | H80: 418.37 | I80: 280569
B81: 53 | C81: 2022-09-01 | D81: 280569 | E81: 1691.72 | G81: 1271.45 | H81: 420.27 | I81: 280148.73
B82: 54 | C82: 2022-10-01 | D82: 280148.73 | E82: 1691.72 | G82: 1269.54 | H82: 422.18 | I82: 279726.55
B83: 55 | C83: 2022-11-01 | D83: 279726.55 | E83: 1691.72 | G83: 1267.63 | H83: 424.09 | I83: 279302.46
B84: 56 | C84: 2022-12-01 | D84: 279302.46 | E84: 1691.72 | G84: 1265.71 | H84: 426.01 | I84: 278876.45
B85: 57 | C85: 2023-01-01 | D85: 278876.45 | E85: 1691.72 | G85: 1263.78 | H85: 427.94 | I85: 278448.51
B86: 58 | C86: 2023-02-01 | D86: 278448.51 | E86: 1691.72 | G86: 1261.84 | H86: 429.88 | I86: 278018.63
B87: 59 | C87: 2023-03-01 | D87: 278018.63 | E87: 1691.72 | G87: 1259.89 | H87: 431.83 | I87: 277586.8
B88: 60 | C88: 2023-04-01 | D88: 277586.8 | E88: 1691.72 | G88: 1257.94 | H88: 433.78 | I88: 277153.02
B89: 61 | C89: 2023-05-01 | D89: 277153.02 | E89: 1691.72 | G89: 1255.97 | H89: 435.75 | I89: 276717.27
B90: 62 | C90: 2023-06-01 | D90: 276717.27 | E90: 1691.72 | G90: 1253.99 | H90: 437.73 | I90: 276279.54
B91: 63 | C91: 2023-07-01 | D91: 276279.54 | E91: 1691.72 | G91: 1252.01 | H91: 439.71 | I91: 275839.83
B92: 64 | C92: 2023-08-01 | D92: 275839.83 | E92: 1691.72 | G92: 1250.02 | H92: 441.7 | I92: 275398.13
B93: =IF(I92="","",IF(OR(B92>=$C$22,ROUND(I92,2)<=0),"",B92+1)) -> 65 | C93: 2023-09-01 | D93: 275398.13 | E93: =IF(B93="","",IF(OR(B93=$C$22,$I$17>ROUND((1+$I$16)*I92,2)),ROUND((1+$I$16)*I92,2),$I$17)) -> 1691.72 | G93: =IF(B93="","",ROUND($I$16*I92,2)) -> 1248.02 | H93: =IF(B93="","",E93-G93+F93) -> 443.7 | I93: 274954.43
B94: 66 | C94: 2023-10-01 | D94: =IF(B94="","",I93) -> 274954.43 | E94: 1691.72 | G94: 1246.01 | H94: 445.71 | I94: =IF(B94="","",I93-H94) -> 274508.72
B95: 67 | C95: 2023-11-01 | D95: 274508.72 | E95: 1691.72 | G95: 1243.99 | H95: 447.73 | I95: 274060.99
B96: 68 | C96: 2023-12-01 | D96: 274060.99 | E96: 1691.72 | G96: 1241.96 | H96: 449.76 | I96: 273611.23
B97: 69 | C97: 2024-01-01 | D97: 273611.23 | E97: 1691.72 | G97: 1239.92 | H97: 451.8 | I97: 273159.43
B98: 70 | C98: 2024-02-01 | D98: 273159.43 | E98: 1691.72 | G98: 1237.87 | H98: 453.85 | I98: 272705.58
B99: 71 | C99: 2024-03-01 | D99: 272705.58 | E99: 1691.72 | G99: 1235.81 | H99: 455.91 | I99: 272249.67
B100: 72 | C100: 2024-04-01 | D100: 272249.67 | E100: 1691.72 | G100: 1233.75 | H100: 457.97 | I100: 271791.7
B101: 73 | C101: 2024-05-01 | D101: 271791.7 | E101: 1691.72 | G101: 1231.67 | H101: 460.05 | I101: 271331.65
B102: 74 | C102: 2024-06-01 | D102: 271331.65 | E102: 1691.72 | G102: 1229.59 | H102: 462.13 | I102: 270869.52
B103: 75 | C103: 2024-07-01 | D103: 270869.52 | E103: 1691.72 | G103: 1227.49 | H103: 464.23 | I103: 270405.29
B104: 76 | C104: 2024-08-01 | D104: 270405.29 | E104: 1691.72 | G104: 1225.39 | H104: 466.33 | I104: 269938.96
B105: 77 | C105: 2024-09-01 | D105: 269938.96 | E105: 1691.72 | G105: 1223.28 | H105: 468.44 | I105: 269470.52
B106: 78 | C106: 2024-10-01 | D106: 269470.52 | E106: 1691.72 | G106: 1221.15 | H106: 470.57 | I106: 268999.95
B107: 79 | C107: 2024-11-01 | D107: 268999.95 | E107: 1691.72 | G107: 1219.02 | H107: 472.7 | I107: 268527.25
B108: 80 | C108: 2024-12-01 | D108: 268527.25 | E108: 1691.72 | G108: 1216.88 | H108: 474.84 | I108: 268052.41
B109: 81 | C109: 2025-01-01 | D109: 268052.41 | E109: 1691.72 | G109: 1214.73 | H109: 476.99 | I109: 267575.42
B110: 82 | C110: 2025-02-01 | D110: 267575.42 | E110: 1691.72 | G110: 1212.57 | H110: 479.15 | I110: 267096.27
B111: 83 | C111: 2025-03-01 | D111: 267096.27 | E111: 1691.72 | G111: 1210.4 | H111: 481.32 | I111: 266614.95
B112: 84 | C112: 2025-04-01 | D112: 266614.95 | E112: 1691.72 | G112: 1208.21 | H112: 483.51 | I112: 266131.44
B113: 85 | C113: 2025-05-01 | D113: 266131.44 | E113: 1691.72 | G113: 1206.02 | H113: 485.7 | I113: 265645.74
B114: 86 | C114: 2025-06-01 | D114: 265645.74 | E114: 1691.72 | G114: 1203.82 | H114: 487.9 | I114: 265157.84
B115: 87 | C115: 2025-07-01 | D115: 265157.84 | E115: 1691.72 | G115: 1201.61 | H115: 490.11 | I115: 264667.73
B116: 88 | C116: 2025-08-01 | D116: 264667.73 | E116: 1691.72 | G116: 1199.39 | H116: 492.33 | I116: 264175.4
B117: 89 | C117: 2025-09-01 | D117: 264175.4 | E117: 1691.72 | G117: 1197.16 | H117: 494.56 | I117: 263680.84
B118: 90 | C118: 2025-10-01 | D118: 263680.84 | E118: 1691.72 | G118: 1194.92 | H118: 496.8 | I118: 263184.04
B119: 91 | C119: 2025-11-01 | D119: 263184.04 | E119: 1691.72 | G119: 1192.67 | H119: 499.05 | I119: 262684.99
B120: 92 | C120: 2025-12-01 | D120: 262684.99 | E120: 1691.72 | G120: 1190.4 | H120: 501.32 | I120: 262183.67
B121: 93 | C121: 2026-01-01 | D121: 262183.67 | E121: 1691.72 | G121: 1188.13 | H121: 503.59 | I121: 261680.08
B122: 94 | C122: 2026-02-01 | D122: 261680.08 | E122: 1691.72 | G122: 1185.85 | H122: 505.87 | I122: 261174.21
B123: 95 | C123: 2026-03-01 | D123: 261174.21 | E123: 1691.72 | G123: 1183.56 | H123: 508.16 | I123: 260666.05
B124: 96 | C124: 2026-04-01 | D124: 260666.05 | E124: 1691.72 | G124: 1181.26 | H124: 510.46 | I124: 260155.59
B125: 97 | C125: 2026-05-01 | D125: 260155.59 | E125: 1691.72 | G125: 1178.94 | H125: 512.78 | I125: 259642.81
B126: 98 | C126: 2026-06-01 | D126: 259642.81 | E126: 1691.72 | G126: 1176.62 | H126: 515.1 | I126: 259127.71
B127: 99 | C127: 2026-07-01 | D127: 259127.71 | E127: 1691.72 | G127: 1174.28 | H127: 517.44 | I127: 258610.27
B128: 100 | C128: 2026-08-01 | D128: 258610.27 | E128: 1691.72 | G128: 1171.94 | H128: 519.78 | I128: 258090.49
B129: 101 | C129: 2026-09-01 | D129: 258090.49 | E129: 1691.72 | G129: 1169.58 | H129: 522.14 | I129: 257568.35
B130: 102 | C130: 2026-10-01 | D130: 257568.35 | E130: 1691.72 | G130: 1167.22 | H130: 524.5 | I130: 257043.85
B131: 103 | C131: 2026-11-01 | D131: 257043.85 | E131: 1691.72 | G131: 1164.84 | H131: 526.88 | I131: 256516.97
B132: 104 | C132: 2026-12-01 | D132: 256516.97 | E132: 1691.72 | G132: 1162.45 | H132: 529.27 | I132: 255987.7
B133: 105 | C133: 2027-01-01 | D133: 255987.7 | E133: 1691.72 | G133: 1160.05 | H133: 531.67 | I133: 255456.03
B134: 106 | C134: 2027-02-01 | D134: 255456.03 | E134: 1691.72 | G134: 1157.65 | H134: 534.07 | I134: 254921.96
B135: 107 | C135: 2027-03-01 | D135: 254921.96 | E135: 1691.72 | G135: 1155.23 | H135: 536.49 | I135: 254385.47
B136: 108 | C136: 2027-04-01 | D136: 254385.47 | E136: 1691.72 | G136: 1152.79 | H136: 538.93 | I136: 253846.54
B137: 109 | C137: 2027-05-01 | D137: 253846.54 | E137: 1691.72 | G137: 1150.35 | H137: 541.37 | I137: 253305.17
B138: 110 | C138: 2027-06-01 | D138: 253305.17 | E138: 1691.72 | G138: 1147.9 | H138: 543.82 | I138: 252761.35
B139: 111 | C139: 2027-07-01 | D139: 252761.35 | E139: 1691.72 | G139: 1145.43 | H139: 546.29 | I139: 252215.06
B140: 112 | C140: 2027-08-01 | D140: 252215.06 | E140: 1691.72 | G140: 1142.96 | H140: 548.76 | I140: 251666.3
B141: 113 | C141: 2027-09-01 | D141: 251666.3 | E141: 1691.72 | G141: 1140.47 | H141: 551.25 | I141: 251115.05
B142: 114 | C142: 2027-10-01 | D142: 251115.05 | E142: 1691.72 | G142: 1137.97 | H142: 553.75 | I142: 250561.3
B143: 115 | C143: 2027-11-01 | D143: 250561.3 | E143: 1691.72 | G143: 1135.46 | H143: 556.26 | I143: 250005.04
B144: 116 | C144: 2027-12-01 | D144: 250005.04 | E144: 1691.72 | G144: 1132.94 | H144: 558.78 | I144: 249446.26
B145: 117 | C145: 2028-01-01 | D145: 249446.26 | E145: 1691.72 | G145: 1130.41 | H145: 561.31 | I145: 248884.95
B146: 118 | C146: 2028-02-01 | D146: 248884.95 | E146: 1691.72 | G146: 1127.87 | H146: 563.85 | I146: 248321.1
B147: 119 | C147: 2028-03-01 | D147: 248321.1 | E147: 1691.72 | G147: 1125.31 | H147: 566.41 | I147: 247754.69
B148: 120 | C148: 2028-04-01 | D148: 247754.69 | E148: 1691.72 | G148: 1122.75 | H148: 568.97 | I148: 247185.72
B149: 121 | C149: 2028-05-01 | D149: 247185.72 | E149: 1691.72 | G149: 1120.17 | H149: 571.55 | I149: 246614.17
B150: 122 | C150: 2028-06-01 | D150: 246614.17 | E150: 1691.72 | G150: 1117.58 | H150: 574.14 | I150: 246040.03
B151: 123 | C151: 2028-07-01 | D151: 246040.03 | E151: 1691.72 | G151: 1114.98 | H151: 576.74 | I151: 245463.29
B152: 124 | C152: 2028-08-01 | D152: 245463.29 | E152: 1691.72 | G152: 1112.36 | H152: 579.36 | I152: 244883.93
B153: 125 | C153: 2028-09-01 | D153: 244883.93 | E153: 1691.72 | G153: 1109.74 | H153: 581.98 | I153: 244301.95
B154: 126 | C154: 2028-10-01 | D154: 244301.95 | E154: 1691.72 | G154: 1107.1 | H154: 584.62 | I154: 243717.33
B155: 127 | C155: 2028-11-01 | D155: 243717.33 | E155: 1691.72 | G155: 1104.45 | H155: 587.27 | I155: 243130.06
B156: 128 | C156: 2028-12-01 | D156: 243130.06 | E156: 1691.72 | G156: 1101.79 | H156: 589.93 | I156: 242540.13
B157: =IF(I156="","",IF(OR(B156>=$C$22,ROUND(I156,2)<=0),"",B156+1)) -> 129 | C157: 2029-01-01 | D157: 242540.13 | E157: =IF(B157="","",IF(OR(B157=$C$22,$I$17>ROUND((1+$I$16)*I156,2)),ROUND((1+$I$16)*I156,2),$I$17)) -> 1691.72 | G157: =IF(B157="","",ROUND($I$16*I156,2)) -> 1099.11 | H157: =IF(B157="","",E157-G157+F157) -> 592.61 | I157: 241947.52
B158: 130 | C158: 2029-02-01 | D158: =IF(B158="","",I157) -> 241947.52 | E158: 1691.72 | G158: 1096.43 | H158: 595.29 | I158: =IF(B158="","",I157-H158) -> 241352.23
B159: 131 | C159: 2029-03-01 | D159: 241352.23 | E159: 1691.72 | G159: 1093.73 | H159: 597.99 | I159: 240754.24
B160: 132 | C160: 2029-04-01 | D160: 240754.24 | E160: 1691.72 | G160: 1091.02 | H160: 600.7 | I160: 240153.54
B161: 133 | C161: 2029-05-01 | D161: 240153.54 | E161: 1691.72 | G161: 1088.3 | H161: 603.42 | I161: 239550.12
B162: 134 | C162: 2029-06-01 | D162: 239550.12 | E162: 1691.72 | G162: 1085.56 | H162: 606.16 | I162: 238943.96
B163: 135 | C163: 2029-07-01 | D163: 238943.96 | E163: 1691.72 | G163: 1082.82 | H163: 608.9 | I163: 238335.06
B164: 136 | C164: 2029-08-01 | D164: 238335.06 | E164: 1691.72 | G164: 1080.06 | H164: 611.66 | I164: 237723.4
B165: 137 | C165: 2029-09-01 | D165: 237723.4 | E165: 1691.72 | G165: 1077.29 | H165: 614.43 | I165: 237108.97
B166: 138 | C166: 2029-10-01 | D166: 237108.97 | E166: 1691.72 | G166: 1074.5 | H166: 617.22 | I166: 236491.75
B167: 139 | C167: 2029-11-01 | D167: 236491.75 | E167: 1691.72 | G167: 1071.71 | H167: 620.01 | I167: 235871.74
B168: 140 | C168: 2029-12-01 | D168: 235871.74 | E168: 1691.72 | G168: 1068.9 | H168: 622.82 | I168: 235248.92
B169: 141 | C169: 2030-01-01 | D169: 235248.92 | E169: 1691.72 | G169: 1066.07 | H169: 625.65 | I169: 234623.27
B170: 142 | C170: 2030-02-01 | D170: 234623.27 | E170: 1691.72 | G170: 1063.24 | H170: 628.48 | I170: 233994.79
B171: 143 | C171: 2030-03-01 | D171: 233994.79 | E171: 1691.72 | G171: 1060.39 | H171: 631.33 | I171: 233363.46
B172: 144 | C172: 2030-04-01 | D172: 233363.46 | E172: 1691.72 | G172: 1057.53 | H172: 634.19 | I172: 232729.27
B173: 145 | C173: 2030-05-01 | D173: 232729.27 | E173: 1691.72 | G173: 1054.65 | H173: 637.07 | I173: 232092.2
B174: 146 | C174: 2030-06-01 | D174: 232092.2 | E174: 1691.72 | G174: 1051.77 | H174: 639.95 | I174: 231452.25
B175: 147 | C175: 2030-07-01 | D175: 231452.25 | E175: 1691.72 | G175: 1048.87 | H175: 642.85 | I175: 230809.4
B176: 148 | C176: 2030-08-01 | D176: 230809.4 | E176: 1691.72 | G176: 1045.95 | H176: 645.77 | I176: 230163.63
B177: 149 | C177: 2030-09-01 | D177: 230163.63 | E177: 1691.72 | G177: 1043.03 | H177: 648.69 | I177: 229514.94
B178: 150 | C178: 2030-10-01 | D178: 229514.94 | E178: 1691.72 | G178: 1040.09 | H178: 651.63 | I178: 228863.31
B179: 151 | C179: 2030-11-01 | D179: 228863.31 | E179: 1691.72 | G179: 1037.14 | H179: 654.58 | I179: 228208.73
B180: 152 | C180: 2030-12-01 | D180: 228208.73 | E180: 1691.72 | G180: 1034.17 | H180: 657.55 | I180: 227551.18
B181: 153 | C181: 2031-01-01 | D181: 227551.18 | E181: 1691.72 | G181: 1031.19 | H181: 660.53 | I181: 226890.65
B182: 154 | C182: 2031-02-01 | D182: 226890.65 | E182: 1691.72 | G182: 1028.2 | H182: 663.52 | I182: 226227.13
B183: 155 | C183: 2031-03-01 | D183: 226227.13 | E183: 1691.72 | G183: 1025.19 | H183: 666.53 | I183: 225560.6
B184: 156 | C184: 2031-04-01 | D184: 225560.6 | E184: 1691.72 | G184: 1022.17 | H184: 669.55 | I184: 224891.05
B185: 157 | C185: 2031-05-01 | D185: 224891.05 | E185: 1691.72 | G185: 1019.13 | H185: 672.59 | I185: 224218.46
B186: 158 | C186: 2031-06-01 | D186: 224218.46 | E186: 1691.72 | G186: 1016.09 | H186: 675.63 | I186: 223542.83
B187: 159 | C187: 2031-07-01 | D187: 223542.83 | E187: 1691.72 | G187: 1013.02 | H187: 678.7 | I187: 222864.13
B188: 160 | C188: 2031-08-01 | D188: 222864.13 | E188: 1691.72 | G188: 1009.95 | H188: 681.77 | I188: 222182.36
B189: 161 | C189: 2031-09-01 | D189: 222182.36 | E189: 1691.72 | G189: 1006.86 | H189: 684.86 | I189: 221497.5
B190: 162 | C190: 2031-10-01 | D190: 221497.5 | E190: 1691.72 | G190: 1003.76 | H190: 687.96 | I190: 220809.54
B191: 163 | C191: 2031-11-01 | D191: 220809.54 | E191: 1691.72 | G191: 1000.64 | H191: 691.08 | I191: 220118.46
B192: 164 | C192: 2031-12-01 | D192: 220118.46 | E192: 1691.72 | G192: 997.51 | H192: 694.21 | I192: 219424.25
B193: 165 | C193: 2032-01-01 | D193: 219424.25 | E193: 1691.72 | G193: 994.36 | H193: 697.36 | I193: 218726.89
B194: 166 | C194: 2032-02-01 | D194: 218726.89 | E194: 1691.72 | G194: 991.2 | H194: 700.52 | I194: 218026.37
B195: 167 | C195: 2032-03-01 | D195: 218026.37 | E195: 1691.72 | G195: 988.03 | H195: 703.69 | I195: 217322.68
B196: 168 | C196: 2032-04-01 | D196: 217322.68 | E196: 1691.72 | G196: 984.84 | H196: 706.88 | I196: 216615.8
B197: 169 | C197: 2032-05-01 | D197: 216615.8 | E197: 1691.72 | G197: 981.63 | H197: 710.09 | I197: 215905.71
B198: 170 | C198: 2032-06-01 | D198: 215905.71 | E198: 1691.72 | G198: 978.42 | H198: 713.3 | I198: 215192.41
B199: 171 | C199: 2032-07-01 | D199: 215192.41 | E199: 1691.72 | G199: 975.18 | H199: 716.54 | I199: 214475.87
B200: 172 | C200: 2032-08-01 | D200: 214475.87 | E200: 1691.72 | G200: 971.94 | H200: 719.78 | I200: 213756.09
B201: 173 | C201: 2032-09-01 | D201: 213756.09 | E201: 1691.72 | G201: 968.67 | H201: 723.05 | I201: 213033.04
B202: 174 | C202: 2032-10-01 | D202: 213033.04 | E202: 1691.72 | G202: 965.4 | H202: 726.32 | I202: 212306.72
... 188 more rows
